Cogmind - Beta 15 @@@ ROGUE MODE // 2025.06.11 @ 16:33:47 Player: N.W.L. Result: Destroyed by Executioner with Helical Railgun Performance ------------- Evolutions (8) 4000 Regions Visited (15) 3000 Robots Destroyed (329) 1645 Value Destroyed (17914) 17914 Prototype IDs (90) 1800 Alien Tech Used (4) 800 Bonus (10805) 10805 TOTAL SCORE: 39964 Bonus ------- High Alert Combat Kills 2418 Follower Combat Kills 2369 Forged Quantum Companion 2000 Network Hubs Disabled 200 Registered with UFD 300 Met Optimus in HQ 500 Built Enhanced Grunts 300 A7 Reached Mainframe 300 Met R17 at Cetus 500 Used Core Reset Matrix 3000 Met R17 at Research 2000 Met Optimus at Protoforge 1000 Friendly Fire -4082 Cogmind --------- Core Integrity 0/1450 Matter 287/300 Energy 455/455 System Corruption 51% Temperature Cool (0) Movement Walking (97) Location -2/Protoforge Parts ------- > --- POWER (3) -------- Neutrino Core Light Antimatter Reactor Light Antimatter Reactor > --- PROPULSION (7) --- Enhanced Biometal Leg Enhanced Biometal Leg High-density Centrium Leg High-density Centrium Leg Experimental VSS Leg Experimental VSS Leg Experimental VSS Leg > --- UTILITY (12) ----- Experimental Heat Sink Experimental Coolant Injector Large Storage Unit Machine Analyzer Seismic Detector Advanced Melee Analysis Suite Advanced Melee Analysis Suite Experimental Core Analyzer Centrium Light Armor Plating Graphene Brace Improved Hacking Suite Advanced Hacking Suite > --- WEAPON (2) ------- Improved KE Penetrator Superquantum Companion > --- INVENTORY (15) --- Experimental Energy Well (600) Advanced Kinecellerator Helical Railgun Peak State ------------ > --- POWER ------------ Micro Antimatter Reactor Quantum Reactor Improved Quantum Reactor > --- PROPULSION ------- High-density Centrium Leg High-density Centrium Leg High-density Centrium Leg Experimental Biometal Leg Experimental VSS Leg Experimental VSS Leg Experimental VSS Leg > --- UTILITY ---------- Experimental Coolant Injector Large Storage Unit Advanced Visual Processing Unit Experimental Targeting Computer Advanced Melee Analysis Suite Advanced Melee Analysis Suite Advanced Melee Analysis Suite Experimental Core Analyzer Centrium Medium Armor Plating Graphene Brace Improved Hacking Suite Advanced Hacking Suite > --- WEAPON ----------- Sigix Terminator > --- INVENTORY -------- Experimental VSS Leg Experimental Energy Well Seismic Detector Superquantum Companion UFD Drillbomb [Rating: 211] Favorites ----------- Power Quantum Reactor Engine Light Ion Engine Power Core Micro Nuclear Core Reactor Quantum Reactor Propulsion Myomer Leg Treads Light Treads Leg Myomer Leg Wheel Armored Wheel Flight Unit Xenon Bombardment Thruster Utility Advanced Melee Analysis Suite Device Advanced Heat Sink Storage Large Storage Unit Processor Advanced Melee Analysis Suite Hackware Improved Hacking Suite Protection Centrium Medium Armor Plating Weapon Companion Sword Energy Gun Heavy Beamcaster Energy Cannon Proton Burst Cannon Ballistic Gun Helical Railgun Ballistic Cannon Heavy Gauss Cannon Launcher Subdweller Shrapnel Launcher Special Weapon Multitool Slashing Weapon Companion Sword Special Melee Weapon Advanced Datajack Build | -11 -10 -10 -7 -7 -5 -5 -5 -5 -5 -4 -3 -3 -2 -2 -2 ------- Run | Yrd Mat Sub Rec Scr Fac Ext Cet Arc Hub Fac Res Qua Res Tes Frg Slots Evolved 16 | . . . . . 10 . . . . 2 2 . 2 . . Power 2 | . . . . . 1 . . . . . 1 . . . . Propulsion 5 | . . . . . 3 . . . . 1 . . 1 . . Utility 9 | . . . . . 6 . . . . 1 1 . 1 . . Weapon . | . . . . . . . . . . . . . . . . Parts Attached 355 | 7 9 16 7 10 33 35 9 8 4 42 29 53 40 12 41 Power 55 | 1 1 2 1 1 5 6 1 1 1 7 7 6 5 2 8 Engine 11 | 1 1 2 . 1 2 . . . . 3 . . 1 . . Core 14 | . . . 1 . 3 6 . . . 3 . . . . 1 Reactor 30 | . . . . . . . 1 1 1 1 7 6 4 2 7 Propulsion 86 | 2 . 3 3 5 2 13 3 . . 19 11 4 9 4 8 Treads 16 | 2 . 2 2 1 . 5 2 . . 2 . . . . . Leg 62 | . . . . . . 8 1 . . 17 11 4 9 4 8 Wheel 4 | . . 1 . 3 . . . . . . . . . . . Hover . | . . . . . . . . . . . . . . . . Flight 4 | . . . 1 1 2 . . . . . . . . . . Utility 172 | 2 4 4 2 3 21 12 3 6 3 16 11 38 24 4 19 Device 76 | 1 . 1 . 1 8 4 . 3 1 7 6 22 14 . 8 Storage 20 | 1 2 . 1 1 2 1 1 . 2 1 1 4 2 1 . Processor 26 | . . . . . 8 . . . . 2 1 3 2 2 8 Hackware 10 | . 1 . . . 3 . . 2 . . . 1 2 1 . Protection 40 | . 1 3 1 1 . 7 2 1 . 6 3 8 4 . 3 Artifact . | . . . . . . . . . . . . . . . . Weapon 42 | 2 4 7 1 1 5 4 2 1 . . . 5 2 2 6 Energy Gun 6 | . 2 . . . 1 2 1 . . . . . . . . Energy Cannon 13 | . 2 3 1 . 2 . . . . . . 5 . . . Ballistic Gun 10 | 2 . 1 . . . 1 . . . . . . . 1 5 Ballistic Cannon 1 | . . . . . . . . . . . . . 1 . . Launcher 4 | . . 1 . . 1 . 1 . . . . . . . 1 Special Weapon 3 | . . 2 . . 1 . . . . . . . . . . Impact Weapon . | . . . . . . . . . . . . . . . . Slashing Weapon 4 | . . . . 1 . 1 . . . . . . 1 1 . Piercing Weapon . | . . . . . . . . . . . . . . . . Special Melee Weapon 1 | . . . . . . . . 1 . . . . . . . Unidentified Prototypes 31 | . . . . 1 . . . . . . . 6 4 3 17 Corrupted Parts 13 | . . . . . . . 4 . 1 . . 7 . . 1 System Corruption 79 | . . . . . . . 29 . 12 . . 37 . . 1 Parts Lost 116 | . 1 6 . . 8 10 3 . . 33 13 5 16 1 20 Power 26 | . 1 1 . . 2 3 . . . 8 . 2 2 . 7 Propulsion 35 | . . 3 . . 1 3 3 . . 12 2 1 5 . 5 Utility 49 | . . 1 . . 4 3 . . . 12 11 1 8 1 8 Weapon 6 | . . 1 . . 1 1 . . . 1 . 1 1 . . Highest Loss Streak 11 | . 1 3 . . 4 4 3 . . 11 5 1 11 1 7 To Critical Strikes 4 | . . 1 . . . . 2 . . . . . 1 . . Average Backups 9 | 1 7 4 4 12 5 7 8 8 11 12 14 12 10 12 7 Power . | 1 1 . . . . . . 1 1 . . . . 1 . Propulsion 1 | . . . 1 2 . . . 1 2 3 . . . 3 1 Utility 5 | . 2 2 2 8 2 4 4 4 5 6 8 7 4 5 3 Weapon 2 | . 2 1 . 1 1 3 3 2 1 2 3 3 3 3 1 Tool/Special . | . . . . . . . . . . . . . . . . Unused Backups 54 | . 1 3 1 . 6 18 1 . 11 1 6 . 3 . 3 Power 4 | . . . 1 . . 1 . . 1 1 . . . . . Propulsion 7 | . . . . . . 4 . . 1 . . . . . 2 Utility 32 | . 1 2 . . 4 9 1 . 7 . 5 . 2 . 1 Weapon 9 | . . 1 . . 2 4 . . 2 . . . . . . Tool/Special 2 | . . . . . . . . . . . 1 . 1 . . Average Slot Usage (%) 87 | . 99 75 98 84 74 94 88 82 88 86 84 92 84 89 94 Engine 1 | . 14 10 5 . 2 . . . . 1 . . . . . Core 3 | . . . 8 13 5 9 6 1 . 3 . . . . . Reactor 5 | . . . . . . . 3 9 11 4 8 12 11 12 9 Treads 4 | . 27 19 13 . . 3 7 11 11 5 . . . . . Leg 13 | . . . . . . 18 8 5 5 17 22 24 19 25 27 Wheel 3 | . . 1 5 17 . . . . . . . . . . . Flight 2 | . . . 6 9 10 1 . . . . . . . . . Device 8 | . 1 1 4 . 12 4 5 8 6 5 16 16 16 13 11 Storage 7 | . 14 2 9 13 4 5 11 11 11 7 6 8 6 4 4 Processor 10 | . . . . . 22 20 16 16 16 16 17 9 8 15 20 Hackware 4 | . 12 . . . 9 10 11 2 11 8 3 . 4 11 9 Protection 6 | . . 13 14 4 . 8 5 9 4 9 1 10 7 2 2 Energy Cannon 5 | . 7 16 14 12 . . . . . . . 7 1 . . Special Weapon 2 | . . 2 14 8 1 . . . . . . . . . . Slashing Weapon 2 | . . . . 1 4 5 5 5 5 5 4 . 4 4 3 Peak Build Rating 211 | 7 10 16 27 36 131 117 127 133 131 137 153 180 189 193 211 Average Rating 105 | 5 8 10 23 26 105 85 109 125 129 121 133 162 162 173 183 On Entrance 88 | . 7 8 16 27 29 111 88 121 130 129 86 131 177 169 193 Naked Turns . | . . . . . . . . . . . . . . . . Heaviest Build 215 | 13 32 41 27 215 36 75 72 73 74 84 125 151 145 115 114 Greatest Support 208 | 40 40 40 22 30 36 109 160 160 160 150 151 147 197 204 208 Greatest Overweight (x) 35 | 2 . 4 1 35 1 1 1 . . 2 1 1 1 . . Average Overweight (x) . | . . . . 10 . . . . . . . . . . . Largest Inventory Capacity 35 | 8 15 15 8 35 35 10 10 10 15 15 15 15 15 15 15 Average Capacity 14 | 7 9 6 7 24 10 10 10 10 13 15 15 15 14 15 15 Most Carried 35 | 4 10 15 8 34 35 10 10 10 15 15 15 15 15 15 15 Average Carried 12 | 2 7 5 7 18 10 9 9 9 12 14 14 14 12 14 9 Final Capacity 35 | 8 15 5 8 35 10 10 10 10 15 15 15 15 15 15 15 Final Carried 34 | 4 9 5 8 34 10 10 10 10 15 14 11 15 15 14 3 Class Distribution -------------------- 52% | Scavenger-Mutant 17% | Mutant 10% | Hauler-Mutant 6% | Hacker-Mutant 6% | Scavenger-Assassin 3% | Hacker-Scout Dominant Class ---------------- Mutant | -10/Materials Mutant | -10/Subcaves Mutant | -7/Recycling Hauler-Mutant | -7/Scraptown Hacker-Scout | -5/Factory Scavenger-Mutant | -5/Extension Scavenger-Mutant | -5/Cetus Scavenger-Mutant | -5/Archives Scavenger-Mutant | -5/Hub_04(d) Scavenger-Mutant | -4/Factory Scavenger-Assassin | -3/Research Scavenger-Mutant | -3/Quarantine Scavenger-Mutant | -2/Research Hacker-Mutant | -2/Testing Scavenger-Mutant | -2/Protoforge Resources | -11 -10 -10 -7 -7 -5 -5 -5 -5 -5 -4 -3 -3 -2 -2 -2 ----------- Run | Yrd Mat Sub Rec Scr Fac Ext Cet Arc Hub Fac Res Qua Res Tes Frg Matter Collected 7750 | 170 241 429 249 140 635 588 184 264 70 783 828 943 892 318 1016 Remotely . | . . . . . . . . . . . . . . . . Salvage Created 17269 | 138 339 375 148 . 1214 1005 428 493 226 3367 781 1587 3846 589 2733 Parts 857 | 8 26 20 5 . 62 42 23 38 10 124 33 123 177 36 130 Haulers Intercepted 13 | . 1 . . . 4 . . . 1 2 3 . 1 1 . Recyclers Shooed 4 | . 1 . . . . 1 . . . 1 . . 1 . . Parts Field Recycled . | . . . . . . . . . . . . . . . . Retrieved Matter . | . . . . . . . . . . . . . . . . Parts Self-Destructed 15 | . . 15 . . . . . . . . . . . . . Prevented . | . . . . . . . . . . . . . . . . Kills | -11 -10 -10 -7 -7 -5 -5 -5 -5 -5 -4 -3 -3 -2 -2 -2 ------- Run | Yrd Mat Sub Rec Scr Fac Ext Cet Arc Hub Fac Res Qua Res Tes Frg Combat Hostiles Destroyed 217 | . 8 13 . . 15 16 4 2 2 43 5 20 42 6 41 Melee 134 | . . . . . 7 12 . 2 2 39 5 6 28 5 28 Guns 12 | . 8 . . . . 1 1 . . . . . . . 2 Cannons 10 | . . 4 . . . . . . . . . 2 1 . 3 AOE 35 | . . 9 . . 8 3 . . . 4 . . 8 . 3 Classes Destroyed 28 | 2 5 6 . . 4 1 . . . 1 . 1 . . 8 Worker 23 | . . . . . 2 . . . . 4 1 1 12 2 1 Builder 6 | . . . . . 1 . . . . 1 . . 4 . . Tunneler 11 | 3 . . . . 3 . . . . 3 . . 2 . . Hauler 13 | . 1 . . . 4 . . . 1 2 3 . 1 1 . Recycler 14 | 1 . . 2 . 2 1 . . . 2 1 . 5 . . Mechanic 4 | . . . . . 1 . . . . 1 . . . 1 1 Operator 18 | . 2 . . . . 1 . 9 1 1 1 . 2 1 . Drone 10 | . . . . . . . . . . . . . . . 10 Turret 2 | . . 2 . . . . . . . . . . . . . Watcher 17 | . 2 . . . 4 1 2 . . . . . 7 . 1 Swarmer 33 | . 3 4 . . 12 6 . . . 4 2 . . . 2 Saboteur 1 | . . . . . . . . . . . . . . . 1 Grunt 48 | . 5 . . . 1 1 . . 2 21 3 5 9 . 1 Brawler 3 | . . . . . . 2 . . . . . . . . 1 Duelist 2 | . . . . . . . . . . . . 1 . . 1 Protector 1 | . . . . . . . . . . . . . . . 1 Sentry 25 | . . 1 . . . 6 . 2 . 4 . . 9 . 3 Hunter 13 | . . . . . . . . . . 4 . 2 5 . 2 Programmer 42 | . . . . . 2 . . . . 10 . . 19 6 5 Behemoth 1 | . . . . . . . . . . . . . . . 1 Cetus Guard 4 | . . . . . . . 4 . . . . . . . . Quarantine Guard 12 | . . . . . . . . . . . . 12 . . . Hotshot 2 | . . . . . . . . . . . . . . . 2 Striker 3 | . . . . . . . . . . . . . . . 3 Executioner 6 | . . . . . . . . . . . . . . . 6 Alpha 7 2 | . . . . . . . . . . . . . . . 2 Artisan 1 | . . 1 . . . . . . . . . . . . . Cobbler 2 | . . 2 . . . . . . . . . . . . . Subdweller 8 | . . 8 . . . . . . . . . . . . . Scientist 1 | . . 1 . . . . . . . . . . . . . Scrapoid 3 | . . . . . . . . . . . . . . . 3 Thug 1 | . . . . . . . 1 . . . . . . . . Savage 1 | . . . . . . 1 . . . . . . . . . Best Kill Streak 16 | 4 3 6 2 . 8 4 4 3 2 5 4 2 16 3 7 Combat Bots Only 8 | . 3 4 . . 4 4 3 1 2 5 3 2 8 3 7 Max Kills in Single Turn 6 | 1 1 3 1 . 6 3 2 1 1 3 1 1 5 1 6 Gunslinging . | . . . . . . . . . . . . . . . . Exploded 4 | . . 3 . . 4 3 . . . 3 . . 2 . 3 Melee 1 | . . . . . 1 1 . 1 1 1 1 1 1 1 1 Uniques/NPCs Destroyed . | . . . . . . . . . . . . . . . . Combat | -11 -10 -10 -7 -7 -5 -5 -5 -5 -5 -4 -3 -3 -2 -2 -2 -------- Run | Yrd Mat Sub Rec Scr Fac Ext Cet Arc Hub Fac Res Qua Res Tes Frg Hostile Shots Fired 2336 | . 51 88 . . 115 156 44 27 2 744 73 216 430 55 335 Missed 723 | . 14 29 . . 58 49 15 8 1 214 22 73 135 16 89 Deflected 11 | . . . . . . . . . . . . . 5 . 6 Hits 1613 | . 37 59 . . 57 107 29 19 1 530 51 143 295 39 246 Melee 42 | . . . . . . 2 . . . . 6 26 . . 8 Projectile 1571 | . 37 59 . . 57 105 29 19 1 530 45 117 295 39 238 AOE 4 | . . 1 . . . . . . . 3 . . . . . Critical Strikes 111 | . . 1 . . 1 5 7 . . 29 2 25 18 3 20 Actively Blocked 42 | . . . . . . . . . . . . 9 16 1 16 Part Disruptions 3 | . . . . . . . . . . . . . 2 1 . Damage Taken 34608 | . 403 1154 . . 1282 2209 627 564 52 9805 2386 3660 5406 477 6583 Core 3956 | . 61 130 . . 226 252 103 84 9 1126 171 324 584 10 876 Absorbed by Shields 4051 | . . . . . . 216 168 . . 634 . . 1862 448 723 Reduced by Siege Mode 16 | . . . . . . . . . . 16 . . . . . Ignored by Resistances 863 | . . 24 . . . . . . . 187 278 374 . . . Regen/Repaired (Parts) 1415 | . 101 . . . . . . . . 687 . . . 627 . Core Remaining (%) 43 | 100 . . . 23 . . . . 32 2 . 61 . . . Volleys Fired 329 | 9 44 105 4 . 13 26 22 . 1 8 . 50 14 . 33 Largest 2 | 2 2 2 1 . 1 2 1 . 1 1 . 2 1 . 2 Hottest 240 | 40 120 120 60 . 90 150 240 . 43 80 . 200 51 . 76 Shots Fired 447 | 18 88 124 4 . 13 42 22 . 1 8 . 79 15 . 33 Gun 203 | 18 80 24 . . . 40 15 . . 6 . . . . 20 Cannon 180 | . 8 64 4 . 9 . . . . . . 79 4 . 12 Launcher 44 | . . 17 . . 3 2 7 . 1 2 . . 11 . 1 Special 20 | . . 19 . . 1 . . . . . . . . . . Kinetic 152 | 18 43 41 . . . . 14 . . . . . 4 . 32 Thermal 190 | . 45 83 4 . 10 40 1 . . 6 . . . . 1 Explosive 19 | . . . . . 3 2 . . 1 2 . . 11 . . Electromagnetic 86 | . . . . . . . 7 . . . . 79 . . . Robot Hit Streak 19 | 4 19 14 8 . 9 16 5 . . 5 . 10 5 . 11 Robot Miss Streak 7 | 3 3 2 . . 1 4 2 . . . . 5 3 . 7 Penetration Max 1 | . . . . . . . 1 . . . . . . . . Secondary Targets . | . . . . . . . . . . . . . . . . Autonomous 14 | . . . . . . . . . . . . . 7 1 6 Shots Hit Robots 947 | 10 62 62 4 . 39 99 11 31 6 219 28 100 140 25 111 Core Hits 489 | 7 21 35 2 . 27 35 14 14 5 84 11 65 115 7 47 Critical Kills 1 | . . . . . . . 1 . . . . . . . . Critical Parts Destroyed 2 | . . . . . . . 2 . . . . . . . . Critical Strikes 36 | . . . . . . 4 4 2 . 14 . 3 6 . 3 Burn 3 | . . . . . . 3 . . . . . . . . . Destroy 5 | . . . . . . . 4 . . . . . . . 1 Corrupt 1 | . . . . . . . . . . . . 1 . . . Sever 1 | . . . . . . 1 . . . . . . . . . Melee Attacks 1031 | . . . . . 92 95 . 35 12 282 73 56 206 42 138 Impact . | . . . . . . . . . . . . . . . . Slashing 1030 | . . . . . 92 95 . 35 12 281 73 56 206 42 138 Piercing . | . . . . . . . . . . . . . . . . Sneak Attacks 97 | . . . . . 10 5 . 16 2 24 7 2 11 5 15 Combat Hostiles 14 | . . . . . . 1 . 5 . 2 . 2 . . 4 Follow-up Attacks 32 | . . . . . . 10 . . . 14 . 4 1 . 3 Damage Inflicted 60930 | 92 634 2550 69 . 2918 4348 1229 2067 466 10442 1446 3562 13545 2233 15329 Guns 2201 | 92 547 316 . . . 771 63 . . . . . . . 412 Cannons 3908 | . 87 712 69 . . . . . . . . 1835 611 73 521 Explosions 14553 | . . 1516 . . 822 398 1166 . 117 521 . 289 3870 . 5854 Melee 40154 | . . . . . 2091 3170 . 2067 349 9900 1446 1420 9009 2160 8542 Ramming 103 | . . . . . . 9 . . . 21 . 18 55 . . Kinetic 2663 | 92 264 1832 . . . . 63 . . . . . . . 412 Thermal 8520 | . 370 718 69 . 5 771 444 . . . . 289 . . 5854 Explosive 5728 | . . . . . 822 398 . . 117 521 . . 3870 . . Electromagnetic 2557 | . . . . . . . 722 . . . . 1835 . . . Impact . | . . . . . . . . . . . . . . . . Slashing 40154 | . . . . . 2091 3170 . 2067 349 9900 1446 1420 9009 2160 8542 Piercing . | . . . . . . . . . . . . . . . . Phasic 1205 | . . . . . . . . . . . . . 611 73 521 Highest Corruption 51 | . . . . . 11 15 44 44 42 17 28 38 28 37 51 Average Corruption 24 | . . . . . 9 12 35 39 29 9 20 10 22 31 44 Corruption Purged 16 | . . . . . . . . 16 . . . . . . . Corruption Blocked . | . . . . . . . . . . . . . . . . Effects 584 | . . . . . 17 85 25 46 25 67 4 17 73 63 162 Message Errors 159 | . . . . . 4 24 6 7 12 17 . 8 20 18 43 Matter Fused 137 | . . . . . 5 19 5 10 3 13 3 2 20 15 42 Heat Flow Errors 74 | . . . . . 1 12 3 10 7 6 . 3 10 10 12 Energy Discharges 48 | . . . . . . 6 2 3 2 11 . 2 4 6 12 Parts Rejected 12 | . . . . . 1 1 . . . 5 . . 2 . 3 Parts Fused 3 | . . . . . 1 . . 1 . 1 . . . . . Data Loss (minor) 71 | . . . . . 3 14 4 11 . 7 1 1 6 5 19 Data Loss (major) 37 | . . . . . 2 3 1 3 1 4 . . 4 7 12 Misfires 7 | . . . . . . 2 2 . . . . 1 1 . 1 Alerts 10 | . . . . . . 1 . 1 . 1 . . 3 . 4 Misdirections 22 | . . . . . . 3 . . . 2 . . 3 2 12 Weapon Failures 4 | . . . . . . . 2 . . . . . . . 2 Overload Shots 1 | . . . . . . . 1 . . . . . . . . Overflow Damage 5651 | . . 44 . . 403 179 15 122 . 919 143 136 1693 353 1644 Projectiles 144 | . . . . . . . . . . . . 10 72 3 59 Explosions 1065 | . . 44 . . 80 . 15 . . 171 . . 184 . 571 Melee 4442 | . . . . . 323 179 . 122 . 748 143 126 1437 350 1014 Knockbacks 1 | . . . . . . . . . . . . . 1 . . Impact 1 | . . . . . . . . . . . . . 1 . . Kinetic . | . . . . . . . . . . . . . . . . Secondary . | . . . . . . . . . . . . . . . . Self-Inflicted Damage 636 | . . 185 . . . . . . . 78 . 102 271 . . Shots 13 | . . 6 . . . . . . . 2 . 1 4 . . Rammed 2 | . 1 . . . . . . . . 1 . . . . . Targets Rammed 11 | . 1 . . . . 1 . . . 3 . 1 5 . . Kicked 9 | . . . . . . 1 . . . 2 . 1 5 . . Crushed . | . . . . . . . . . . . . . . . . Highest Temperature 322 | . 171 54 72 . 114 322 199 244 195 231 3 237 238 258 210 Average Temperature 70 | . 52 14 33 . 41 105 53 88 73 66 3 68 101 116 85 Received Heat Transfer 3684 | . 186 147 . . 54 440 66 81 18 1608 84 408 327 8 257 Effects 3 | . . . . . . 1 . . . . . . . . 2 Energy Bleed 1 | . . . . . . 1 . . . . . . . . . Interference 2 | . . . . . . . . . . . . . . . 2 Siege Activations 1 | . . . . . . . . . . 1 . . . . . Total Turns 6 | . . . . . . . . . . 6 . . . . . Longest Duration 6 | . . . . . . . . . . 6 . . . . . Martial Activations . | . . . . . . . . . . . . . . . . Shielding Activations 3 | . . . . . . . . . . . . . . . 3 Total Turns 21 | . . . . . . . . . . . . . . . 21 Longest Duration 10 | . . . . . . . . . . . . . . . 10 Robots Disrupted 10 | . . . . . . 2 . 1 . 4 . 1 . . 2 Combat Hostiles 9 | . . . . . . 2 . 1 . 3 . 1 . . 2 Robots Corrupted 15 | . . . . . . . 3 . . . . 12 . . . Combat Hostiles 15 | . . . . . . . 3 . . . . 12 . . . Parts Fried 51 | . . . . . . . 5 . . . . 46 . . . Impact Corruptions 2 | . . . . . . . . . . . . . 2 . . Robots Melted . | . . . . . . . . . . . . . . . . Combat Hostiles . | . . . . . . . . . . . . . . . . Parts Melted 16 | . 3 1 . . . 1 . . . . . 3 2 . 6 Heat Transferred 4431 | . 810 1431 148 . 25 1517 350 . . . . 150 . . . Parts Sabotaged . | . . . . . . . . . . . . . . . . Parts Stolen . | . . . . . . . . . . . . . . . . Parts Stripped 89 | . . . . . . . . . . . . . 23 17 49 Power Chain Reactions 4 | . . . . . . . 2 . . . . 2 . . . Alert | -11 -10 -10 -7 -7 -5 -5 -5 -5 -5 -4 -3 -3 -2 -2 -2 ------- Run | Yrd Mat Sub Rec Scr Fac Ext Cet Arc Hub Fac Res Qua Res Tes Frg Maximum Alert Level 5 | . . . . . 2 3 2 1 2 2 1 1 3 2 5 Low Security (%) 52 | 100 100 . 100 . 68 12 . 26 26 39 89 82 24 7 43 Level 1 24 | . . . . . 9 65 . 73 65 46 10 17 3 71 . Level 2 10 | . . . . . 21 10 100 . 8 13 . . 38 20 . Level 3 4 | . . . . . . 12 . . . . . . 33 . . Level 4 6 | . . . . . . . . . . . . . . . 49 Level 5 . | . . . . . . . . . . . . . . . 6 High Security . | . . . . . . . . . . . . . . . . Max Security . | . . . . . . . . . . . . . . . . Peak Influence 1648 | 15 84 . 5 . 668 1027 604 314 439 536 270 324 942 525 1648 Initial 564 | . . . . . . 324 564 223 38 175 270 9 182 525 126 Average 299 | 1 23 . . . 178 394 527 231 282 248 81 72 564 276 837 Influence Increases 11822 | 20 323 170 10 . 1139 1579 330 256 805 1536 316 855 1696 334 2453 Destroy 0b10 Robot/C 5020 | . 160 140 . . 300 960 160 80 300 860 100 400 840 120 600 Destroy 0b10 Robot/NC 595 | 20 25 . 10 . 85 20 10 45 15 70 30 5 165 25 70 Destroy Leader 968 | . 56 . . . 66 82 . . 64 174 16 150 236 32 92 Allied During Kill 858 | . . . . . . 404 107 110 235 2 . . . . . Trap Triggered on 0b10 40 | . 20 . . . 20 . . . . . . . . . . Successful Hack 491 | . 32 . . . 56 22 . . 37 69 35 109 44 49 38 Select Force Hacks 80 | . 30 . . . . . . . 50 . . . . . . Disable Machine 1005 | . . . . . 60 . 15 15 60 15 . 105 15 45 675 Destroy Structure 1505 | . . . . . 162 76 38 6 44 76 30 26 291 33 723 Partial Spotted 75 | . . . . . 60 . . . . . . . 15 . . Lose Combat Pursuer 1185 | . . 30 . . 330 15 . . . 270 105 60 90 30 255 Influence Decreases 10175 | 20 323 170 10 . 475 1234 781 703 557 1380 815 547 1086 1043 1031 Entered New Map 2279 | . . . . . . 340 445 335 73 184 245 7 142 409 99 Time Decay 5650 | 20 313 140 10 . 395 634 206 368 254 676 435 490 634 464 611 Lost Part 1037 | . 10 30 . . 80 100 30 . . 330 72 30 160 10 185 Lost Ally 410 | . . . . . . 160 100 . 80 40 . 20 . 10 . Purge Threat 799 | . . . . . . . . . 150 150 63 . 150 150 136 Squads Dispatched 81 | . 3 . . . 14 5 . . 4 13 10 1 16 5 10 Investigation 31 | . 2 . . . 8 . . . 2 4 7 1 4 . 3 Extermination 20 | . . . . . 3 . . . 1 5 . . 5 3 3 Reinforcement 25 | . 1 . . . 3 3 . . 1 1 3 . 7 2 4 Assault 2 | . . . . . . 2 . . . . . . . . . Garrison 3 | . . . . . . . . . . 3 . . . . . Intercept . | . . . . . . . . . . . . . . . . Searches Triggered . | . . . . . . . . . . . . . . . . Construction Impeded 4 | . . . . . . 2 . . . . . . 2 . . Haulers Reinforced 7 | . . . . . 2 . . . 1 . 2 . 1 1 . Active Scanning Responses . | . . . . . . . . . . . . . . . . Cargo Convoy Interrupts . | . . . . . . . . . . . . . . . . Stealth | -11 -10 -10 -7 -7 -5 -5 -5 -5 -5 -4 -3 -3 -2 -2 -2 --------- Run | Yrd Mat Sub Rec Scr Fac Ext Cet Arc Hub Fac Res Qua Res Tes Frg Distress Signals 36 | . . . . . 3 3 3 . 2 7 5 1 5 1 6 Communications Jammed 59 | . . . . . . . . . . . . . 23 36 . Distress Signals 59 | . . . . . . . . . . . . . 23 36 . Times Spotted 442 | . 14 16 . . 44 43 10 5 13 83 28 27 67 13 79 Peak Tracking Total 15 | . 3 6 . . 11 5 5 1 3 9 6 5 9 4 15 Tactical Retreats 49 | . . 1 . . 13 1 . . . 12 4 2 4 2 10 Traps | -11 -10 -10 -7 -7 -5 -5 -5 -5 -5 -4 -3 -3 -2 -2 -2 ------- Run | Yrd Mat Sub Rec Scr Fac Ext Cet Arc Hub Fac Res Qua Res Tes Frg Traps Triggered 13 | . . . . . 2 2 . . 1 1 . 3 . . 4 Indirectly . | . . . . . . . . . . . . . . . . Trap Hack Attempts . | . . . . . . . . . . . . . . . . Triggered . | . . . . . . . . . . . . . . . . Disarmed . | . . . . . . . . . . . . . . . . Reprogrammed 7 | . 7 . . . . . . . . . . . . . . Reused 4 | . 2 . . . 2 . . . . . . . . . . Traps Extracted . | . . . . . . . . . . . . . . . . Installed 2 | . . . . . 2 . . . . . . . . . . Triggered 4 | . 2 . . . 2 . . . . . . . . . . Most Traps Carried 3 | . . 2 . 3 3 . . . . . . . . . . Machines | -11 -10 -10 -7 -7 -5 -5 -5 -5 -5 -4 -3 -3 -2 -2 -2 ---------- Run | Yrd Mat Sub Rec Scr Fac Ext Cet Arc Hub Fac Res Qua Res Tes Frg Machines Disabled 73 | . . 5 . . 4 1 1 1 4 1 . 7 1 3 45 Max in Single Turn 42 | . . 2 . . 1 . 1 . 1 . . 1 1 1 42 Garrison Access 4 | . . . . . 2 . . . 1 . . . . 1 . Network Hub 1 | . . . . . . . . . 1 . . . . . . Machines Repaired . | . . . . . . . . . . . . . . . . Machines Dismantled . | . . . . . . . . . . . . . . . . Machines Sabotaged 1 | . . . . . . . . . 1 . . . . . . Overloaded Fab Kills . | . . . . . . . . . . . . . . . . Hacking | -11 -10 -10 -7 -7 -5 -5 -5 -5 -5 -4 -3 -3 -2 -2 -2 --------- Run | Yrd Mat Sub Rec Scr Fac Ext Cet Arc Hub Fac Res Qua Res Tes Frg Machines Accessed 113 | . 8 1 . 4 24 8 1 . 6 16 9 13 9 8 6 Terminals 65 | . 6 . . . 11 8 1 . 5 10 5 8 4 4 3 Fabricators 5 | . . . . . 2 . . . . 2 1 . . . . Repair Stations 8 | . 1 . . . 2 . . . . 1 . 2 . 2 . Recycling Units 22 | . 1 . . . 7 . . . . 3 3 . 5 . 3 Scanalyzers 4 | . . . . . . . . . . . . 3 . 1 . Garrison Access 4 | . . . . . 2 . . . 1 . . . . 1 . Total Hacks 359 | . 32 1 . 26 63 21 2 . 14 51 28 39 25 37 20 Successful 193 | . 20 1 . 26 35 11 . . 8 30 7 12 9 23 11 Failed 165 | . 11 . . . 28 10 2 . 6 21 21 27 16 14 9 Catastrophic 31 | . . . . . 3 1 1 . 2 3 3 11 3 3 1 Database Lockouts 1 | . 1 . . . . . . . . . . . . . . Manual 185 | . 18 . . . 45 6 1 . 9 25 7 21 14 27 12 Terminals 225 | . 26 . . . 39 21 2 . 13 36 14 23 11 27 13 Fabricators 16 | . . . . . 4 . . . . 5 7 . . . . Repair Stations 30 | . 3 . . . 6 . . . . 3 . 12 . 6 . Recycling Units 48 | . 3 . . . 10 . . . . 7 7 . 14 . 7 Scanalyzers 7 | . . . . . . . . . . . . 4 . 3 . Garrison Access 6 | . . . . . 4 . . . 1 . . . . 1 . Terminal Hacks 94 | . 8 1 . 26 13 9 . . 4 10 2 3 3 8 7 Record 25 | . . . . 25 . . . . . . . . . . . Part Schematic 2 | . . . . . 2 . . . . . . . . . . Robot Analysis 2 | . 2 . . . . . . . . . . . . . . Prototype ID Bank 8 | . 1 . . . 1 1 . . . 2 . 2 . 1 . Open Door 8 | . . . . 1 . 6 . . . . . 1 . . . Open DSF 1 | . . . . . 1 . . . . . . . . . . Level Access Points 1 | . . . . . . . . . 1 . . . . . . Branch Access Points 4 | . . . . . . . . . 1 1 1 . 1 . . Terminal Index 4 | . 1 . . . 1 . . . . 1 . . . 1 . Alert Level 7 | . . . . . 1 1 . . . 3 . . . 1 1 Unreport Threat 6 | . . . . . . . . . 1 1 1 . 1 1 1 Locate Traps 5 | . 1 . . . 1 1 . . . . . . . 1 1 Reprogram Traps 2 | . 2 . . . . . . . . . . . . . . Maintenance Status 1 | . . . . . . . . . . . . . . 1 . Patrol Status 1 | . 1 . . . . . . . . . . . . . . Recall Investigation 2 | . . . . . 2 . . . . . . . . . . Recall Extermination 3 | . . . . . 1 . . . . . . . . 1 1 Hauler Manifests 4 | . . . . . 2 . . . . 1 . . . . 1 Zone Layout 7 | . . . . . 1 . . . 1 1 . . 1 1 2 Proto ID Catalog 1 | . . 1 . . . . . . . . . . . . . Fabricator Hacks 8 | . . . . . 1 . . . . 5 2 . . . . Network Status 4 | . . . . . 1 . . . . 2 1 . . . . Load Schematic 2 | . . . . . . . . . . 2 . . . . . Build 2 | . . . . . . . . . . 1 1 . . . . Repair Station Hacks 12 | . 2 . . . 2 . . . . 2 . 2 . 4 . Scan Component 6 | . 1 . . . . . . . . 1 . 2 . 2 . Repair 4 | . 1 . . . . . . . . 1 . . . 2 . Refit 2 | . . . . . 2 . . . . . . . . . . Recycling Unit Hacks 5 | . 1 . . . . . . . . 2 . . 2 . . Retrieve Components 5 | . 1 . . . . . . . . 2 . . 2 . . Scanalyzer . | . . . . . . . . . . . . . . . . Garrison Access Hacks 4 | . . . . . 2 . . . 1 . . . . 1 . Seal Access 4 | . . . . . 2 . . . 1 . . . . 1 . Unauthorized Hacks 70 | . 9 . . . 17 2 . . 3 11 3 7 4 10 4 Terminals 45 | . 8 . . . 7 2 . . 3 7 . 6 1 9 2 Track 2 | . . . . . . . . . . . . . . 2 . Assimilate 3 | . 1 . . . . . . . . . . . . 1 1 Botnet 7 | . 1 . . . . 1 . . 1 1 . 1 . 2 . Operators 5 | . 1 . . . 1 . . . 1 1 . . . 1 . Skim 27 | . 5 . . . 6 1 . . . 5 . 5 1 3 1 Sabotage 1 | . . . . . . . . . 1 . . . . . . Fabricators 2 | . . . . . 2 . . . . . . . . . . Liberate 1 | . . . . . 1 . . . . . . . . . . Haulers 1 | . . . . . 1 . . . . . . . . . . Repair Stations 2 | . . . . . 1 . . . . 1 . . . . . Mechanics 2 | . . . . . 1 . . . . 1 . . . . . Recycling Units 19 | . 1 . . . 7 . . . . 3 3 . 3 . 2 Tunnel 1 | . 1 . . . . . . . . . . . . . . Fedlink 18 | . . . . . 7 . . . . 3 3 . 3 . 2 Scanalyzers 2 | . . . . . . . . . . . . 1 . 1 . Researchers 2 | . . . . . . . . . . . . 1 . 1 . Garrison Access . | . . . . . . . . . . . . . . . . Data Cores Recovered 4 | . 1 . . . . . . . 1 . . . 1 1 . Used 1 | . . . . . . . . . . . . . . 1 . Hacking Detections 71 | . 6 . . . 15 3 1 . 4 10 6 12 5 5 4 Full Trace Events 8 | . . . . . 1 . . . 1 1 3 1 . . 1 Feedback Events . | . . . . . . . . . . . . . . . . Feedback Blocked . | . . . . . . . . . . . . . . . . Robot Schematics Acquired . | . . . . . . . . . . . . . . . . Robots Built . | . . . . . . . . . . . . . . . . Authchips . | . . . . . . . . . . . . . . . . Time . | . . . . . . . . . . . . . . . . Total Robot Build Rating . | . . . . . . . . . . . . . . . . Part Schematics Acquired 2 | . . . . . 2 . . . . . . . . . . Parts Built 4 | . . . . . . . . . . 2 2 . . . . Authchips . | . . . . . . . . . . . . . . . . Time 141 | . . . . . . . . . . 95 46 . . . . Total Part Build Rating 28 | . . . . . . . . . . 10 18 . . . . Parts Repaired 4 | . 1 . . . . . . . . 1 . . . 2 . Time 244 | . 26 . . . . . . . . 108 . . . 110 . Parts Recycled . | . . . . . . . . . . . . . . . . Recycled Matter . | . . . . . . . . . . . . . . . . Retrieved Matter . | . . . . . . . . . . . . . . . . Retrieved Components 16 | . 2 . . . . . . . . 4 . . 10 . . Parts Scanalyzed . | . . . . . . . . . . . . . . . . Part Schematics Acquired . | . . . . . . . . . . . . . . . . Parts Damaged . | . . . . . . . . . . . . . . . . Bothacking | -11 -10 -10 -7 -7 -5 -5 -5 -5 -5 -4 -3 -3 -2 -2 -2 ------------ Run | Yrd Mat Sub Rec Scr Fac Ext Cet Arc Hub Fac Res Qua Res Tes Frg Used RIF Installer . | . . . . . . . . . . . . . . . . Robots Hacked . | . . . . . . . . . . . . . . . . Non-combat . | . . . . . . . . . . . . . . . . Combat . | . . . . . . . . . . . . . . . . Robot Hacks Applied . | . . . . . . . . . . . . . . . . Relay Couplers Released 1 | . . . . . . . . . 1 . . . . . . Machine Destruction 1 | . . . . . . . . . 1 . . . . . . Fabnet Peak Effective % . | . . . . . . . . . . . . . . . . Robots Rewired 15 | . . . . . . 13 . . . 2 . . . . . Allies Hacked 2 | . . . . . . 1 . . . . . . . 1 . Hacks Repelled . | . . . . . . . . . . . . . . . . Allies | -11 -10 -10 -7 -7 -5 -5 -5 -5 -5 -4 -3 -3 -2 -2 -2 -------- Run | Yrd Mat Sub Rec Scr Fac Ext Cet Arc Hub Fac Res Qua Res Tes Frg Total Allies 29 | . . . . . . 21 5 . . 2 . . . 1 . Largest Group 10 | . . . . . . 10 8 6 4 1 . . . 1 . Highest-Rated Group 627 | . . . . . . 451 627 627 372 47 . . . 45 . Highest-Rated Ally 159 | . . . . . . 159 159 159 96 47 . . . 45 . Total Orders 14 | . . . . . . 4 . 4 1 . 2 3 . . . STAY 5 | . . . . . . 2 . 2 1 . . . . . . ROAM 3 | . . . . . . . . . . . 1 2 . . . FOLLOW 4 | . . . . . . 2 . 2 . . . . . . . EXPLORE 1 | . . . . . . . . . . . . 1 . . . RETURN 1 | . . . . . . . . . . . 1 . . . . Ally Attacks 341 | . . . . . . 194 33 27 81 6 . . . . . Total Damage 9405 | . . . . . . 5251 822 1079 2153 100 . . . . . Kills 58 | . . . . . . 37 5 2 14 . . . . . . Allies Corrupted 5 | . . . . . . 2 . . 2 . . . . 1 . Allies Melted 1 | . . . . . . . . . 1 . . . . . . Intel | -11 -10 -10 -7 -7 -5 -5 -5 -5 -5 -4 -3 -3 -2 -2 -2 ------- Run | Yrd Mat Sub Rec Scr Fac Ext Cet Arc Hub Fac Res Qua Res Tes Frg Active Infowar (turns) 16818 | 37 115 . . 50 1482 2221 400 845 550 2652 1400 777 2180 1179 2930 Optics 12013 | . . . . . 318 2221 400 845 550 2652 1397 . 338 1179 2113 Sensors 3635 | . . . . . 1400 57 . . . 663 1284 10 221 . . Terrain 1339 | . . . . . 1010 . . . . . . . 329 . . Structural 1228 | . . . . 50 219 . . . . 717 . 242 . . . Seismic 4373 | 37 115 . . . 990 . . . . 102 624 523 1054 407 521 T.N.C. 78 | . . . . . . . . . . . . . 78 . . Machine Analysis 1416 | . . . . . . . . . . . . . . . 1416 Jamming 4277 | . . . . . . . . . . 257 . 2 2105 1108 805 ECM 3 | . . . . . . . . . . . . . 1 . 2 Robot Analysis Total 2 | . 2 . . . . . . . . . . . . . . Derelict Logs Recovered 2 | . . 1 . 1 . . . . . . . . . . . Drone Launches 3 | . . . . . . . . . . . 1 2 . . . Drone Recoveries 1 | . . . . . . . . . . . 1 . . . . Exploration | -11 -10 -10 -7 -7 -5 -5 -5 -5 -5 -4 -3 -3 -2 -2 -2 ------------- Run | Yrd Mat Sub Rec Scr Fac Ext Cet Arc Hub Fac Res Qua Res Tes Frg Turns Passed 30775 | 125 1010 2663 740 4945 1492 2221 437 845 550 2652 1481 5279 2226 1179 2930 Spaces Moved 16318 | 58 516 1461 447 1305 2501 1433 197 324 273 1192 947 1954 1086 719 1905 Core 14 | 10 . 4 . . . . . . . . . . . . . Treads 3073 | 48 516 1263 196 141 . 142 157 324 273 13 . . . . . Legs 8811 | . . . . . . 981 40 . . 1179 947 1954 1086 719 1905 Wheels 1335 | . . 194 251 890 . . . . . . . . . . . Hover . | . . . . . . . . . . . . . . . . Flight 3085 | . . . . 274 2501 310 . . . . . . . . . Fastest Speed 34 | 50 160 110 110 105 34 34 120 160 160 120 110 110 115 123 97 Average Speed 130 | 152 160 153 160 346 36 107 160 160 160 125 119 118 126 123 105 Slowest Speed 2845 | 160 160 250 225 2845 97 240 190 160 160 240 184 197 199 124 123 Overloaded Moves . | . . . . . . . . . . . . . . . . Propulsion Burnouts . | . . . . . . . . . . . . . . . . Robots Hopped 20 | . . . . . 16 4 . . . . . . . . . Potential Cave-ins 73 | . . . . . 4 . . . . 10 23 . 25 . 11 Cave-ins Triggered 5 | . . . . . 1 . . . . . 4 . . . . Exploration Rate (%) 58 | 5 70 57 75 81 54 86 70 92 27 31 36 96 32 71 49 Regions Visited 15 Branch Regions 10 Pre-discovered Areas 12 | . 2 . . 5 1 . . . . 4 . . . . . Known Exits Taken 6 | . . . . . 1 . . . 1 1 1 1 1 . . Unknown Exits Taken 9 | 1 1 1 1 1 . 1 1 1 . . . . . 1 . Scrap Searched 13 | . . 3 . 10 . . . . . . . . . . . Spaces Dug 261 | . . 15 . . 47 24 . 1 4 38 39 2 51 11 29 Terrain Destroyed 883 | . . 167 . . 92 47 20 1 13 46 39 11 144 11 292 Melee 211 | . . . . . 43 5 . 1 4 32 39 2 50 11 24 Projectile 29 | . . 1 . . 9 . . . . 5 . . 2 . 12 AOE 643 | . . 166 . . 40 42 20 . 9 9 . 9 92 . 256 Terrain Rammed . | . . . . . . . . . . . . . . . . Walls Destroyed . | . . . . . . . . . . . . . . . . Machines Disabled . | . . . . . . . . . . . . . . . . Actions | -11 -10 -10 -7 -7 -5 -5 -5 -5 -5 -4 -3 -3 -2 -2 -2 --------- Run | Yrd Mat Sub Rec Scr Fac Ext Cet Arc Hub Fac Res Qua Res Tes Frg Total 24048 | 77 619 1718 465 1723 2927 1951 298 602 368 1950 1185 4756 1747 975 2687 Wait 5211 | . 37 82 . 350 230 216 50 231 67 353 102 2535 334 177 447 Move 16262 | 57 515 1460 446 1304 2469 1424 196 323 272 1191 944 1953 1085 718 1905 Hop 19 | . . . . . 15 4 . . . . . . . . . Pick Up 189 | 4 8 12 5 33 13 25 5 . 6 27 11 13 11 4 12 Fast Attach 216 | 7 1 11 1 5 16 22 2 5 1 22 11 42 29 7 34 Attach 97 | . 2 3 . 1 18 6 . 1 . 23 6 11 9 2 15 Detach 90 | . 1 4 . 4 7 9 . 3 1 5 . 13 15 3 25 Swap 222 | . 7 9 6 18 15 15 11 2 5 29 17 39 25 11 13 Drop 270 | . 3 27 3 8 34 37 12 1 3 19 19 47 15 11 31 Fire 329 | 9 44 105 4 . 13 26 22 . 1 8 . 50 14 . 33 Melee 998 | . . . . . 92 84 . 35 12 268 73 52 205 42 135 Ram . | . . . . . . . . . . . . . . . . Kick 9 | . . . . . . 1 . . . 2 . 1 5 . . Crush 2 | . 1 . . . . . . . . 1 . . . . . Escape Stasis 6 | . . . . . . 4 . . . . 2 . . . . Rewire 88 | . . . . . . 78 . 1 . 2 . . . . 7 Trap 2 | . . . . . 2 . . . . . . . . . . Miscellaneous 38 | . . 5 . . 3 . . . . . . . . . 30 Route ------- -11/Scrapyard -10/Materials (discovered 5 exits: *Mat x3 / *Min / *Sub) -10/Subcaves (discovered 3 exits: *Mat x2 / [*Rec]) -7/Recycling (discovered 2 exits: *Fac / *Scr) -7/Scraptown (discovered 2 exits: *Fac x2) -5/Factory (discovered 8 exits: *Fac x4 / *Upp x2 / *Ext x2) -5/Extension (discovered 2 exits: *Fac / *Cet) -5/Cetus (discovered 2 exits: *Fac / *Arc) -5/Archives (discovered 3 exits: *Fac / *Hub x2) -5/Hub_04(d) (discovered 4 exits: *Fac x4) -4/Factory (discovered 6 exits: *Res x4 / Upp x2) -3/Research (discovered 5 exits: *Res x2 / Arm / *Qua x2) -3/Quarantine -2/Research (discovered 4 exits: *Acc x2 / *Tes x2) -2/Testing (discovered 2 exits: [*Sec] / *Frg) -2/Protoforge History --------- Turn | Location | Event 9 | -11/Scrapyard | Discovered new exit (range 16) 126 | -11/Scrapyard | Entered Materials 300 | -10/Materials | Build established: Mutant 434 | -10/Materials | Repaired Lgt. Treads 495 | -10/Materials | Central database locked down 564 | -10/Materials | Identified exit to Materials 622 | -10/Materials | Identified exit to Mines 670 | -10/Materials | Learned 2 Mines zone layouts 1062 | -10/Materials | Discovered new exit (range 8) 1136 | -10/Materials | Entered Subcaves 1137 | -10/Subcaves | Approached by a straggling Scientist 1137 | -10/Subcaves | Identified exit to Materials 1330 | -10/Subcaves | A swath of the cavern ceiling suddenly collapsed 1438 | -10/Subcaves | Shifting Twisted Machinery released Riot Gun 1453 | -10/Subcaves | Shifting Twisted Machinery released Sub. Monowheel 1520 | -10/Subcaves | Learned Materials interactive machine intel 1949 | -10/Subcaves | A Subdweller sparked back to life 1949 | -10/Subcaves | A Subdweller sparked back to life 1978 | -10/Subcaves | Found Prototype Processor 2044 | -10/Subcaves | Discovered new exit (range 15) 2255 | -10/Subcaves | Build established: Subdweller-Mutant 2303 | -10/Subcaves | Core integrity fell below 50% 2304 | -10/Subcaves | Ambushed by Subdweller buried in earth 2361 | -10/Subcaves | Lost 3 parts (2n1w) 2607 | -10/Subcaves | Build established: Mutant 2771 | -10/Subcaves | Shifting Twisted Machinery released Riot Gun 2771 | -10/Subcaves | Shifting Twisted Machinery released Riot Gun 3462 | -10/Subcaves | Visited 4L-MR0's lab 3478 | -10/Subcaves | Identified Rainbow Chip 3484 | -10/Subcaves | Found Flightbrick 3735 | -10/Subcaves | A swath of the cavern ceiling suddenly collapsed 3799 | -10/Subcaves | Entered Recycling 3878 | -7/Recycling | Build established: Scavenger-Mutant 3950 | -7/Recycling | Discovered new exit (range 13) 4389 | -7/Recycling | Build established: Mutant 4488 | -7/Recycling | Scanned before Scraplab entrance 4519 | -7/Recycling | Entered Scraplab 4537 | -7/Recycling | Discovered new exit (range 2) 4539 | -7/Recycling | Entered Scraptown 5162 | -7/Scraptown | Discovered new exit (range 13) 5545 | -7/Scraptown | Scanned Subdweller tech in exchange for log data 5561 | -7/Scraptown | Learned Research terminal intel 5666 | -7/Scraptown | Heard Great Nut preacher, LISTEN AND RECITE! 5797 | -7/Scraptown | Visited Observation Area 5960 | -7/Scraptown | Visited Supply Room 6002 | -7/Scraptown | Visited The Evicted 6070 | -7/Scraptown | Visited SPCMW 6123 | -7/Scraptown | Visited Bundlers 6546 | -7/Scraptown | Visited UFD Registry 6546 | -7/Scraptown | Registered with UFD as "Autocase" 6559 | -7/Scraptown | Build established: Hauler-Mutant 6663 | -7/Scraptown | Visited Cartography Club 7009 | -7/Scraptown | Found Deep Structural Scanner 7036 | -7/Scraptown | Learned location of Proximity Caves (-3) 7036 | -7/Scraptown | Learned location of Warlord (-4) 7036 | -7/Scraptown | Learned location of Hub_04(d) (-5) 7036 | -7/Scraptown | Learned 16 Materials zone layouts 7036 | -7/Scraptown | Learned 16 Research zone layouts 7036 | -7/Scraptown | Learned 4 Mines zone layouts 7036 | -7/Scraptown | Learned 16 Upper Caves zone layouts 7036 | -7/Scraptown | Learned 16 Proximity Caves zone layouts 7036 | -7/Scraptown | Learned location of 3 exits from Factory 7036 | -7/Scraptown | Learned location of 1 exit from Research 7036 | -7/Scraptown | Learned location of 3 exits from Proximity Caves 7153 | -7/Scraptown | Visited Science Guys 7259 | -7/Scraptown | Visited Abandonware Association 7297 | -7/Scraptown | Learned abandonware demo "KABOOM.EXE" 7373 | -7/Scraptown | Visited Sword Containment 7425 | -7/Scraptown | Visited A0-MCA Data Center 7523 | -7/Scraptown | Given a D- rating by A0-MCA 7606 | -7/Scraptown | Found A0-MCA's Component Scanner 7673 | -7/Scraptown | Visited DA-N13 Charitable Foundation 7687 | -7/Scraptown | Found DCF Scrap (28 items) 7810 | -7/Scraptown | Visited Chapter 10 7852 | -7/Scraptown | Visited Curators Association 7962 | -7/Scraptown | Visited Derelict Rescue Squad 7983 | -7/Scraptown | Found DRS Beacon 8046 | -7/Scraptown | Visited Botcube Research 8063 | -7/Scraptown | Found Lrg. Botcube 9379 | -7/Scraptown | Met Optimus 9379 | -7/Scraptown | Accepted into 0bPrime 9475 | -7/Scraptown | Discovered new exit (range 5) 9484 | -7/Scraptown | Entered Factory 9484 | -5/Factory | Evolved 10 slots: Power x1, Propulsion x3, Utility x6 9485 | -5/Factory | Identified exit to Upper Caves 9486 | -5/Factory | Identified exit to Factory 9486 | -5/Factory | Identified exit to Extension 9489 | -5/Factory | Attached Flightbrick, gained temporary slots: Utility x3 9510 | -5/Factory | Attached Rainbow Chip, gained temporary slots: Power, Propulsion, Utility, Weapon 9854 | -5/Factory | Discovered exit to Factory (range 3) 9857 | -5/Factory | Found Imp. Powered Armor 10041 | -5/Factory | Build established: Hacker-Scout 10098 | -5/Factory | Loaded intel: 8 recycling unit locations 10230 | -5/Factory | Learned location of Protoforge (-2) 10497 | -5/Factory | Crushed by falling debris 10536 | -5/Factory | Lost 4 parts (1n2u1w) 10539 | -5/Factory | Discovered exit to Factory (range 6) 10656 | -5/Factory | Learned Research terminal intel 10793 | -5/Factory | Learned 4 Research zone layouts 10809 | -5/Factory | System corruption reached 10% 10825 | -5/Factory | Build established: Hacker-Mutant 10846 | -5/Factory | Learned Armory fabricator intel 10887 | -5/Factory | Learned Research trap positions 10918 | -5/Factory | Learned 4 Upper Caves zone layouts 10941 | -5/Factory | Learned location of 2 exits from Factory 10974 | -5/Factory | Learned location of 1 exit from Proximity Caves 10976 | -5/Factory | Entered Extension 11176 | -5/Extension | Spotted B-75 Beast 11269 | -5/Extension | Rescued a captive Derelict 11498 | -5/Extension | Build established: Scavenger-Gladiator 11547 | -5/Extension | Lost 4 allies 11588 | -5/Extension | Lost 4 parts (1p1n2u) 11914 | -5/Extension | Build established: Scavenger-Mutant 12036 | -5/Extension | Lrg. Botcube activated 12072 | -5/Extension | Lrg. Botcube completed mutation into treaded form, armed with 4 guns. 12226 | -5/Extension | Lost 3 allies 12391 | -5/Extension | Allies destroyed B-75 Beast 12439 | -5/Extension | Spotted B-75 Beast 12463 | -5/Extension | Allies destroyed B-75 Beast 12682 | -5/Extension | Rescued A7 12724 | -5/Extension | Rescued a captive Derelict 12726 | -5/Extension | Rescued a captive Derelict 12776 | -5/Extension | First assault squad dispatched 12891 | -5/Extension | Rescued a captive Derelict 12892 | -5/Extension | Rescued a captive Derelict 13079 | -5/Extension | Rescued a captive Derelict 13101 | -5/Extension | Rescued a captive Derelict 13135 | -5/Extension | Discovered exit to Factory (range 10) 13136 | -5/Extension | Discovered new exit (range 6) 13197 | -5/Extension | Entered Cetus 13197 | -5/Cetus | Accompanied by 8 allies (A7) 13202 | -5/Cetus | Acquired a Cetus Manufacturing Module code from A7 13224 | -5/Cetus | Spotted Cetus Guard 13224 | -5/Cetus | Spotted Cetus Guard 13226 | -5/Cetus | Spotted Cetus Guard 13227 | -5/Cetus | Spotted Cetus Guard 13240 | -5/Cetus | Core integrity fell below 50% 13242 | -5/Cetus | Destroyed Cetus Guard 13242 | -5/Cetus | Destroyed Cetus Guard 13243 | -5/Cetus | Destroyed Cetus Guard 13252 | -5/Cetus | Allies destroyed Cetus Guard 13272 | -5/Cetus | Lost 3 parts (3n) 13280 | -5/Cetus | Lost 5 allies 13325 | -5/Cetus | System corruption reached 30% 13400 | -5/Cetus | Escorted A7 to Cetus Mainframe 13417 | -5/Cetus | Started Cetus Manufacturing Module 13442 | -5/Cetus | Manufactured an Enhanced Grunt 13467 | -5/Cetus | Manufactured an Enhanced Grunt 13484 | -5/Cetus | Discovered new exit (range 17) 13492 | -5/Cetus | Manufactured an Enhanced Grunt 13513 | -5/Cetus | Spotted Cetus Guard 13514 | -5/Cetus | Spotted Cetus Guard 13514 | -5/Cetus | Spotted Cetus Guard 13517 | -5/Cetus | Manufactured an Enhanced Grunt 13517 | -5/Cetus | Spotted Cetus Guard 13526 | -5/Cetus | Allies destroyed Cetus Guard 13528 | -5/Cetus | Allies destroyed Cetus Guard 13531 | -5/Cetus | Allies destroyed Cetus Guard 13532 | -5/Cetus | Destroyed Cetus Guard 13536 | -5/Cetus | Discovered exit to Factory (range 18) 13542 | -5/Cetus | Manufactured an Enhanced Grunt 13547 | -5/Cetus | Met Revision 17 13634 | -5/Cetus | Entered Archives 13634 | -5/Archives | Accompanied by 6 allies (A7) 13639 | -5/Archives | Received a hacking code to weaken MAIN.C 13983 | -5/Archives | Discovered new exit (range 14) 14149 | -5/Archives | Discovered new exit (range 18) 14272 | -5/Archives | Discovered exit to Factory (range 15) 14362 | -5/Archives | Unable to access archive contents 14479 | -5/Archives | Entered Hub_04(d) 14479 | -5/Hub_04(d) | Accompanied by 4 allies 14661 | -5/Hub_04(d) | Discovered exit to Factory (range 20) 14877 | -5/Hub_04(d) | Network Hub disabled 14944 | -5/Hub_04(d) | Spotted Lightning 15029 | -5/Hub_04(d) | Entered Factory 15029 | -4/Factory | Evolved 2 slots: Propulsion x1, Utility x1 15030 | -4/Factory | Identified exit to Research 15030 | -4/Factory | Identified exit to Upper Caves 15180 | -4/Factory | Garrison activated, responded to threat 15399 | -4/Factory | Loaded intel: 8 recycling unit locations 15704 | -4/Factory | Spotted B-86 Titan 15847 | -4/Factory | Lost 3 parts (1p1n1w) 16226 | -4/Factory | Found Exp. Terrain Scan Processor 16387 | -4/Factory | Repaired Centrium Heavy Treads? 16436 | -4/Factory | System corruption reached 10% 16667 | -4/Factory | Learned 8 Research zone layouts 16668 | -4/Factory | Learned 8 Research zone layouts 16669 | -4/Factory | Learned location of Armory (-3) 16881 | -4/Factory | Core integrity fell below 50% 16961 | -4/Factory | Lost 11 parts (2p4n5u) 17264 | -4/Factory | Build established: Scavenger-Assassin 17363 | -4/Factory | Lost 4 parts (2p1n1u) 17549 | -4/Factory | Fabricated Adv. Melee Analysis Suite? 17586 | -4/Factory | Core integrity fell below 20% 17680 | -4/Factory | Lost 7 parts (2p3n2u) 17680 | -4/Factory | Found Exp. Terrain Scan Processor 17681 | -4/Factory | Entered Research 17681 | -3/Research | Evolved 2 slots: Power x1, Utility x1 17682 | -3/Research | Identified exit to Armory 17682 | -3/Research | Identified exit to Quarantine 17683 | -3/Research | Identified exit to Research 17685 | -3/Research | Loaded intel: 80 trap records 17686 | -3/Research | Loaded intel: 22 terminal locations 17751 | -3/Research | Found Exp. Thermal Defense Suite 17881 | -3/Research | Revision forces began assault on 0b10 17946 | -3/Research | Met up with Revision 17++ 18088 | -3/Research | Found Exp. Signal Interpreter 18096 | -3/Research | Spotted B-86 Titan 18130 | -3/Research | Found Exp. Target Analyzer 18133 | -3/Research | Spotted B-86 Titan 18181 | -3/Research | Loaded intel: 4 recycling unit locations 18381 | -3/Research | Research terminal network offline 18394 | -3/Research | Lost 4 allies 18631 | -3/Research | Fabricated Lgt. Quantum Reactor? 18780 | -3/Research | Spotted Striker 18816 | -3/Research | Lost 3 allies 18836 | -3/Research | Lost 3 parts (1n2u) 18862 | -3/Research | Found Centrium Heavy Armor Plating 18865 | -3/Research | Found Centrium Heavy Armor Plating 18926 | -3/Research | Lost 3 allies 19048 | -3/Research | Spotted Striker 19078 | -3/Research | Crushed by falling debris 19081 | -3/Research | Crushed by falling debris 19082 | -3/Research | System corruption reached 10% 19112 | -3/Research | Lost 5 parts (5u) 19140 | -3/Research | Crushed by falling debris 19142 | -3/Research | Crushed by falling debris 19162 | -3/Research | Entered Quarantine 19173 | -3/Quarantine | Lost 3 parts (1n2u) 19206 | -3/Quarantine | Found Alien Artifact 19206 | -3/Quarantine | Identified Core Reset Matrix 19206 | -3/Quarantine | Used Core Reset Matrix 19210 | -3/Quarantine | Detected hypermatrix surge 19210 | -3/Quarantine | Sensed 6 artifacts in vicinity 19255 | -3/Quarantine | Cryocooling Duct disabled 19270 | -3/Quarantine | Ambient heat levels rising (+20) 19270 | -3/Quarantine | Non-combat units ordered to evacuate 19386 | -3/Quarantine | Build established: Scavenger-Mutant 19534 | -3/Quarantine | Cryocooling Duct disabled 19549 | -3/Quarantine | Ambient heat levels rising (+20) 19549 | -3/Quarantine | Combat units ordered to evacuate 19568 | -3/Quarantine | Found Sigix Broadsword 19649 | -3/Quarantine | Quarantine Guard activated 19727 | -3/Quarantine | Spotted Quarantine Guard 19759 | -3/Quarantine | Destroyed Quarantine Guard 19772 | -3/Quarantine | Spotted Quarantine Guard 19798 | -3/Quarantine | Destroyed Quarantine Guard 19804 | -3/Quarantine | Spotted Quarantine Guard 19810 | -3/Quarantine | Destroyed Quarantine Guard 19922 | -3/Quarantine | Spotted Quarantine Guard 19928 | -3/Quarantine | Destroyed Quarantine Guard 20175 | -3/Quarantine | Spotted Quarantine Guard 20179 | -3/Quarantine | Destroyed Quarantine Guard 20628 | -3/Quarantine | Spotted Quarantine Guard 20638 | -3/Quarantine | Destroyed Quarantine Guard 21373 | -3/Quarantine | Spotted Quarantine Guard 21381 | -3/Quarantine | Destroyed Quarantine Guard 22500 | -3/Quarantine | Spotted Quarantine Guard 22571 | -3/Quarantine | Destroyed Quarantine Guard 22743 | -3/Quarantine | Spotted Quarantine Guard 22760 | -3/Quarantine | Destroyed Quarantine Guard 22791 | -3/Quarantine | Learned Access emergency access door positions 22833 | -3/Quarantine | Learned 8 Section 7 zone layouts 22865 | -3/Quarantine | Learned Research emergency access door positions 22903 | -3/Quarantine | Learned location of 1 exit from Armory 22905 | -3/Quarantine | Learned Section 7 stockpile data 22918 | -3/Quarantine | Learned Access stockpile data 23020 | -3/Quarantine | Found Subatomic Replicator 23128 | -3/Quarantine | Spotted Quarantine Guard 23190 | -3/Quarantine | Destroyed Quarantine Guard 23342 | -3/Quarantine | Found Unknown Device 23342 | -3/Quarantine | Identified Launcher Loader 23518 | -3/Quarantine | Discovered exit to Research (range 11) 23518 | -3/Quarantine | Spotted Quarantine Guard 23541 | -3/Quarantine | Destroyed Quarantine Guard 23915 | -3/Quarantine | Found Terrabomb 23993 | -3/Quarantine | Found Sigix Terminator 24047 | -3/Quarantine | Spotted Quarantine Guard 24065 | -3/Quarantine | Destroyed Quarantine Guard 24295 | -3/Quarantine | System corruption reached 30% 24441 | -3/Quarantine | Entered Research 24441 | -2/Research | Evolved 2 slots: Propulsion x1, Utility x1 24442 | -2/Research | Identified exit to Access 24544 | -2/Research | Loaded intel: 5 recycling unit locations 24559 | -2/Research | Identified exit to Testing 25036 | -2/Research | System corruption reached 10% 25044 | -2/Research | Forged Quantum Companion 25047 | -2/Research | Forged Prototype Slashing Weapon 25177 | -2/Research | Lost 11 parts (2p3n5u1w) 25183 | -2/Research | Destroyed 8 combat bots 25491 | -2/Research | Found Prototype Device 25491 | -2/Research | Identified Exp. ECM Suite 26339 | -2/Research | Spotted B-90 Cyclops 26551 | -2/Research | Spotted B-90 Cyclops 26667 | -2/Research | Entered Testing 26675 | -2/Testing | Found Prototype Processor 26675 | -2/Testing | Identified Exp. Signal Interpreter 26711 | -2/Testing | Found Prototype Device 26711 | -2/Testing | Identified Exp. Thermal Shield 26872 | -2/Testing | System corruption reached 30% 26998 | -2/Testing | Repaired Centrium Medium Armor Plating 27008 | -2/Testing | Spotted PD-HQ08H610VI 27154 | -2/Testing | Found Prototype Ballistic Gun 27154 | -2/Testing | Identified Hyp. Multirail 27196 | -2/Testing | Build established: Hacker-Mutant 27280 | -2/Testing | Repaired Adv. Cooling System 27757 | -2/Testing | Spotted Fortress 27840 | -2/Testing | Discovered new exit (range 6) 27840 | -2/Testing | Discovered new exit (range 6) 27846 | -2/Testing | Entered Protoforge 27847 | -2/Protoforge | Sensed 2 artifacts in vicinity 27951 | -2/Protoforge | Superfortress began startup sequence 28035 | -2/Protoforge | Spotted B-90 Cyclops 28412 | -2/Protoforge | Spotted Hotshot 28413 | -2/Protoforge | Spotted Hotshot 28421 | -2/Protoforge | Destroyed Hotshot 28454 | -2/Protoforge | Destroyed Hotshot 28456 | -2/Protoforge | Spotted Overlord 28640 | -2/Protoforge | Spotted AP7-3 28641 | -2/Protoforge | Spotted AP7-3 28649 | -2/Protoforge | Destroyed AP7-3 28670 | -2/Protoforge | Core integrity fell below 50% 28677 | -2/Protoforge | Destroyed AP7-3 28696 | -2/Protoforge | Found Prototype Ballistic Gun 28696 | -2/Protoforge | Identified Cep. XC Strikerail 28699 | -2/Protoforge | Found Prototype Processor 28699 | -2/Protoforge | Identified Exp. Targeting Computer 28703 | -2/Protoforge | Found Prototype Device 28703 | -2/Protoforge | Identified Exp. ECM Suite 28828 | -2/Protoforge | Spotted EXE-6 28828 | -2/Protoforge | Spotted EXE-6 28867 | -2/Protoforge | Build established: Scavenger-Mutant 28872 | -2/Protoforge | Destroyed EXE-6 28883 | -2/Protoforge | Destroyed EXE-6 28889 | -2/Protoforge | Found Prototype Processor 28889 | -2/Protoforge | Identified Exp. Core Analyzer 28896 | -2/Protoforge | Found Prototype Device 28896 | -2/Protoforge | Identified Exp. Kinecellerator 28945 | -2/Protoforge | UFD initiated attack on Protoforge 28945 | -2/Protoforge | Loaded intel: 3 recycling unit locations 28981 | -2/Protoforge | Optimus greeted in Protoforge 29025 | -2/Protoforge | Found UFD Drillbomb 29052 | -2/Protoforge | Spotted SKR-2 29053 | -2/Protoforge | Spotted SKR-2 29054 | -2/Protoforge | Spotted SKR-2 29078 | -2/Protoforge | Spotted EXE-6 29079 | -2/Protoforge | Spotted EXE-6 29108 | -2/Protoforge | Destroyed EXE-6 29124 | -2/Protoforge | Met 7R-MNS 29133 | -2/Protoforge | Fired Sigix Terminator 29135 | -2/Protoforge | Lost 3 parts (1p1n1u) 29159 | -2/Protoforge | Murdered 3 allies 29168 | -2/Protoforge | Installed UFD Drillbomb at designated target 29168 | -2/Protoforge | UFD reported confirmed Drillbomb installation 29183 | -2/Protoforge | Found Cep. XC Strikerail 29223 | -2/Protoforge | Spotted Striker 29224 | -2/Protoforge | Spotted Striker 29235 | -2/Protoforge | Found UFD Drillbomb 29285 | -2/Protoforge | Found Exp. Armor Integrity Analyzer 29341 | -2/Protoforge | Installed UFD Drillbomb at designated target 29341 | -2/Protoforge | UFD reported confirmed Drillbomb installation 29359 | -2/Protoforge | Lost 6 allies 29397 | -2/Protoforge | Spotted Executioner 29441 | -2/Protoforge | Lost 3 allies 29493 | -2/Protoforge | UFD reported confirmed Drillbomb installation 29549 | -2/Protoforge | Destroyed B-90 Cyclops 29603 | -2/Protoforge | Spotted Executioner 29613 | -2/Protoforge | Spotted Executioner 29625 | -2/Protoforge | Destroyed Executioner 29641 | -2/Protoforge | Spotted Executioner 29641 | -2/Protoforge | Spotted Striker 29643 | -2/Protoforge | Lost 4 allies 29648 | -2/Protoforge | Spotted Executioner 29680 | -2/Protoforge | Core integrity fell below 20% 29681 | -2/Protoforge | Destroyed Striker 29707 | -2/Protoforge | Lost 7 parts (2p2n3u) 29713 | -2/Protoforge | Lost 3 allies 29713 | -2/Protoforge | Spotted Executioner 29722 | -2/Protoforge | Destroyed Executioner 29724 | -2/Protoforge | Destroyed Executioner 29745 | -2/Protoforge | Destroyed 7 combat bots 29746 | -2/Protoforge | Found Prototype Device 29746 | -2/Protoforge | Identified Adv. Kinecellerator 29791 | -2/Protoforge | Found Exp. Core Analyzer 29861 | -2/Protoforge | UFD reported confirmed Drillbomb installation 29921 | -2/Protoforge | Spotted Striker 29926 | -2/Protoforge | Spotted Striker 29953 | -2/Protoforge | Destroyed Striker 29958 | -2/Protoforge | Destroyed Striker 29967 | -2/Protoforge | UFD reported confirmed Drillbomb installation 29995 | -2/Protoforge | Lost 3 parts (2p1n) 29998 | -2/Protoforge | Spotted Executioner 30033 | -2/Protoforge | Lost 5 allies 30104 | -2/Protoforge | Found UFD Drillbomb 30167 | -2/Protoforge | UFD reported confirmed Drillbomb installation 30315 | -2/Protoforge | UFD reported confirmed Drillbomb installation 30336 | -2/Protoforge | Spotted Striker 30388 | -2/Protoforge | Lost 7 allies 30423 | -2/Protoforge | Spotted Striker 30455 | -2/Protoforge | P-80 Master assimilated allied 02FBW-D 30477 | -2/Protoforge | Found UFD Drillbomb 30522 | -2/Protoforge | Lost 24 allies 30646 | -2/Protoforge | Installed UFD Drillbomb at designated target 30646 | -2/Protoforge | UFD reported confirmed Drillbomb installation 30696 | -2/Protoforge | Spotted Executioner 30744 | -2/Protoforge | Lost 10 allies 30776 | -2/Protoforge | Destroyed by Executioner with Helical Railgun Last Messages --------------- 30702_ Slug penetrates Earth. 30705_ Slug penetrates Wall. 30708_ Slug penetrates Earth. 30713_ SSCBPKFLH DVOX1A2#Z25JKZOP704 30715_ 0bP_NET: Lugger 829 inbound, all units not involved in other operations escort to target. 30728_ System corrupted: Substantial component data lost. 30729_ Acquired 8 matter. 30745_ System corrupted: Matter fused (-8). 30747_ Destroyed Unknown Hover Unit. 30749_ Destroyed Unknown Energy Gun. 30750_ Exp. Armor Integrity Analyzer destroyed. 30751_ Identified Centrium Light Armor Plating. 30752_ Redirected attack with Superquantum Companion. 30752_ Destroyed Unknown Energy Gun. 30752_ P-80 Master destroyed. 30763_ System corrupted: Energy discharge (-141). 30770_ The unstable cave ceiling collapses. 30770_ 67 Matter crushed. 30773_ Penetrated by Slug. Map ----- +----------------------------------------------------+ | ?????????????????????????????????????????????????? | | ?????????????????????????????????????????????????? | | ??#####????#####????#####????????????????????????? | | ??#####????#####????#####????????????????????????? | | ####?########?########?##????????????????????????? | | ####?########?########?##????????????????????????? | | ???????????????????????#######???????????????????? | | ???????????????????????########??????????????????? | | ?????????????????????????????????????????????????? | | #####????????????????????????????????????????????? | | #####??????????????????????####################### | | ##??????????????????????# | | ##?????#######?##???????# "" "" | | " ##?????#######?# #??????# """" " "" "" | | " ##?????## ##??# ####### "" " "" """ """ | | ######### ##### ###### """ """" "" | | " ######### ###"###"#%### "" % | | " #### =!%+[*" % | | + =*%%*+!% %% """" % | | "###### % %!%E%=+%!= %% % " ""% | | ##### ############![[###[=" " """ | | # #### ############ !## #!%" " "" """""" | | " # ### "^[ ### ### # "" | | """"### %" """ #####|!=# "" " | | !%%% % # """ ##?##E* # """"" " | | [ % # """ ##?# @ # % " " " | | =%% # ##?## # # " " =""" | | "!######### """ ##??# ###[[ """"" [%!"" | | ########### """ ##?? ?#*%! " "" *! " | | ##?????## """ ##?# # #E[ """" " | | ##?????## ##?#### # """ "" | | % ##?????############??????" " " | | ##?????############??????" " " "" | | ##???????????????????????" """ | | ##???????????????????????" """" | | ##???????????????????????# %* """"" | | ##???????????????????????# """"" | | ##???????????????????????# " % """"" | | ##########?????????????????# """""" | | ##########?????????????????# """""" | | ?## ##?????????????????# " """""" | | ?## ############???????# """""" | | ?## ############???????# ???? """""" | | ?## ## #### " " ???? """""" | | ?## ##"" """ ##"""""""" " ?? " """""" | | ?## ##"" ^ " "" """""" | | ?## ##" [* % %"%% """" | | ?## ##"" % % [ " % "%" """"" | | ?## ##" % %% "" """"" | | ?## ## % %% "%% % """"" | +----------------------------------------------------+ Best States ------------- Heat Dissipation 103 Coolant Potential 220 Energy Generation 89 Energy Capacity 1450 Matter Stores 743 Matter Capacity 800 Sight Range 23 Robot Scan Range 18 Terrain Scan Range 20 Terrain Scan Density 135 Jamming Range 16 Power Amplification 40 Additional Mass Support 9 EM Shielding 2 Armor Coverage 1200 Resistance: KI 30 Resistance: TH 30 Resistance: EM 25 Power Shielding 66 Melee Speed Boost 30 Phase Shifting 10 Evasion (%) 80 Targeting Accuracy 12 Melee Accuracy 24 Target Analysis 10 Core Analysis 8 Armor Integrity Analysis 50 Recoil Reduction 5 Offensive Hacking 40 Defensive Hacking 12 Item Schematics ----------------- None Robot Schematics ------------------ None Fabricated ------------ Adv. Melee Analysis Suite | x2 | -4/Factory Lgt. Quantum Reactor | x2 | -3/Research | Preloaded Repaired ---------- Lgt. Treads | 27% | -10/Materials Centrium Heavy Treads | 14% | -4/Factory Centrium Medium Armor Plating | 14% | -2/Testing Adv. Cooling System | 1% | -2/Testing Alien Tech Used ----------------- Core Reset Matrix Subatomic Replicator Sigix Broadsword Sigix Terminator Achievements -------------- None Challenges ------------ None Game ------ Seed SignalGunProtomatter Manual? 0 Play Time 05:46:56 Cumulative 512.8 hours Start 2025.05.30 @ 17:57:01 End 2025.06.11 @ 16:33:47 Sessions 16 Manual Loads 0 Difficulty Rogue Special Mode None Game No. 221 Rogue 221 Adventurer 0 Explorer 0 Win Type - Total 19 Types 10/2/6/1/0/0/0/0/0/0 Lore% 90 Gallery% 87 Achievement% 78 Wizard Run 0 Options --------- Layout 0 ASCII 0 Keyboard 1 Movement Numpad Keybinds 0 Fullscreen 2 Font 12/Smallcaps Map View 76x50 Zoom Use 0% Tactical HUD 1 Map Filters NONE Filters NONE Steam 1 RUN: 07f21a19-c8b3-4c67-8c25-d7d058ec1cbd